[Event "Titled Tuesday Blitz July 18 Early 2023"]
[White "Guevara Sanchez, Erick Marvin"]
[Black "Navyblue1"]
[WhiteFideId "6700136"]
[WhiteElo "2111"]
[BlackElo "1859"]
[Result "1-0"]
[Round "7"]
[TimeControl "180+2"]
[Date "2023.07.18"]
[WhiteClock "0:00:27"]
[BlackClock "0:00:00"]
[Board "186"]

1. e4 {[%clk 0:03:00]}  c5 {[%clk 0:02:57]} 2. d4 {[%clk 0:02:59]}  cxd4 {[%clk 0:02:51]} 3. f4 {[%clk 0:02:59]}  Nc6 {[%clk 0:02:48]} 4. Nf3 {[%clk 0:02:59]}  Qc7 {[%clk 0:02:37]} 5. Bd3 {[%clk 0:02:48]}  d6 {[%clk 0:02:32]} 6. a3 {[%clk 0:02:44]}  Nf6 {[%clk 0:02:24]} 7. O-O {[%clk 0:02:43]}  Bg4 {[%clk 0:02:23]} 8. Nbd2 {[%clk 0:02:39]}  e6 {[%clk 0:02:21]} 9. b4 {[%clk 0:02:35]}  a6 {[%clk 0:02:20]} 10. Qe1 {[%clk 0:02:30]}  Bxf3 {[%clk 0:01:53]} 11. Nxf3 {[%clk 0:02:27]}  Be7 {[%clk 0:01:20]} 12. Kh1 {[%clk 0:02:20]}  O-O {[%clk 0:01:15]} 13. Bb2 {[%clk 0:02:19]}  e5 {[%clk 0:01:05]} 14. h3 {[%clk 0:02:03]}  exf4 {[%clk 0:00:59]} 15. Nxd4 {[%clk 0:02:01]}  Nxd4 {[%clk 0:00:48]} 16. Bxd4 {[%clk 0:02:02]}  Nd7 {[%clk 0:00:45]} 17. Rxf4 {[%clk 0:01:56]}  Ne5 {[%clk 0:00:39]} 18. Qg3 {[%clk 0:01:47]}  f6 {[%clk 0:00:19]} 19. Raf1 {[%clk 0:01:37]}  Rac8 {[%clk 0:00:15]} 20. Rf5 {[%clk 0:01:18]}  b5 {[%clk 0:00:14]} 21. Rh5 {[%clk 0:01:15]}  Rf7 {[%clk 0:00:11]} 22. Rhf5 {[%clk 0:01:07]}  Rb8 {[%clk 0:00:09]} 23. Qe3 {[%clk 0:01:01]}  Rff8 {[%clk 0:00:08]} 24. g4 {[%clk 0:00:59]}  Bd8 {[%clk 0:00:06]} 25. g5 {[%clk 0:00:58]}  Be7 {[%clk 0:00:06]} 26. gxf6 {[%clk 0:00:55]}  Bxf6 {[%clk 0:00:06]} 27. Rg1 {[%clk 0:00:46]}  Kh8 {[%clk 0:00:06]} 28. Rh5 {[%clk 0:00:40]}  Qf7 {[%clk 0:00:04]} 29. Rf5 {[%clk 0:00:38]}  Qe7 {[%clk 0:00:04]} 30. Rgf1 {[%clk 0:00:35]}  Rbc8 {[%clk 0:00:03]} 31. Qg3 {[%clk 0:00:33]}  Rce8 {[%clk 0:00:03]} 32. Qh2 {[%clk 0:00:30]}  Qe6 {[%clk 0:00:01]} 33. Qf2 {[%clk 0:00:28]}  Qe7 {[%clk 0:00:00]} 34. Qg3 {[%clk 0:00:27]} 1-0


[Site "https://www.chess.com"]

[Event "Titled Tuesday Blitz July 18 Early 2023"]
[White "Antipov, Mikhail Al."]
[Black "Duda, Jan-Krzysztof"]
[WhiteFideId "4107012"]
[BlackFideId "1170546"]
[WhiteElo "2913"]
[BlackElo "3022"]
[Result "1-0"]
[Round "8"]
[TimeControl "180+2"]
[Date "2023.07.18"]
[WhiteClock "0:00:03"]
[BlackClock "0:00:00"]
[Board "4"]

1. e4 {[%clk 0:03:00]}  e6 {[%clk 0:03:00]} 2. d4 {[%clk 0:03:00]}  d5 {[%clk 0:03:01]} 3. Nd2 {[%clk 0:03:01]}  c5 {[%clk 0:02:58]} 4. Ngf3 {[%clk 0:03:00]}  cxd4 {[%clk 0:02:58]} 5. exd5 {[%clk 0:03:00]}  Qxd5 {[%clk 0:02:57]} 6. Bc4 {[%clk 0:03:01]}  Qd6 {[%clk 0:02:56]} 7. Ne4 {[%clk 0:03:01]}  Qb4+ {[%clk 0:02:53]} 8. Nfd2 {[%clk 0:03:02]}  Be7 {[%clk 0:02:43]} 9. Qg4 {[%clk 0:02:59]}  g6 {[%clk 0:02:36]} 10. Qf4 {[%clk 0:02:59]}  Nd7 {[%clk 0:02:30]} 11. O-O {[%clk 0:02:56]}  Ngf6 {[%clk 0:02:15]} 12. c3 {[%clk 0:02:50]}  dxc3 {[%clk 0:02:10]} 13. bxc3 {[%clk 0:02:49]}  Qa5 {[%clk 0:02:06]} 14. Nd6+ {[%clk 0:02:43]}  Kf8 {[%clk 0:02:03]} 15. N2e4 {[%clk 0:02:19]}  Qe5 {[%clk 0:01:46]} 16. Qh6+ {[%clk 0:01:24]}  Kg8 {[%clk 0:01:46]} 17. Bf4 {[%clk 0:00:30]}  Qh5 {[%clk 0:01:47]} 18. Rad1 {[%clk 0:00:23]}  Qxh6 {[%clk 0:01:26]} 19. Bxh6 {[%clk 0:00:23]}  Bf8 {[%clk 0:00:41]} 20. Bg5 {[%clk 0:00:20]}  Nxe4 {[%clk 0:00:28]} 21. Nxe4 {[%clk 0:00:21]}  h6 {[%clk 0:00:28]} 22. Bd8 {[%clk 0:00:07]}  Bg7 {[%clk 0:00:27]} 23. Bb5 {[%clk 0:00:07]}  Kh7 {[%clk 0:00:24]} 24. Be7 {[%clk 0:00:03]}  f5 {[%clk 0:00:15]} 25. Bxd7 {[%clk 0:00:02]}  fxe4 {[%clk 0:00:15]} 26. Rfe1 {[%clk 0:00:03]}  Bxc3 {[%clk 0:00:07]} 27. Rxe4 {[%clk 0:00:03]}  Rg8 {[%clk 0:00:07]} 28. Rc4 {[%clk 0:00:02]}  Bb2 {[%clk 0:00:03]} 29. Rc7 {[%clk 0:00:02]}  Bxd7 {[%clk 0:00:03]} 30. Rdxd7 {[%clk 0:00:02]}  Rg7 {[%clk 0:00:03]} 31. h4 {[%clk 0:00:02]}  b5 {[%clk 0:00:03]} 32. Rb7 {[%clk 0:00:01]}  a6 {[%clk 0:00:03]} 33. g3 {[%clk 0:00:02]}  h5 {[%clk 0:00:03]} 34. Kg2 {[%clk 0:00:02]}  Re8 {[%clk 0:00:03]} 35. f4 {[%clk 0:00:02]}  Bc3 {[%clk 0:00:02]} 36. Kf3 {[%clk 0:00:03]}  b4 {[%clk 0:00:01]} 37. Ke4 {[%clk 0:00:04]}  a5 {[%clk 0:00:00]} 38. Bd6 {[%clk 0:00:03]} 1-0


[Site "https://www.chess.com"]

[Event "Titled Tuesday Blitz July 18 Early 2023"]
[White "Oparin, Grigoriy"]
[Black "Galchenko, Matvey"]
[WhiteFideId "24125890"]
[BlackFideId "24175480"]
[WhiteElo "2991"]
[BlackElo "2880"]
[Result "1-0"]
[Round "8"]
[TimeControl "180+2"]
[Date "2023.07.18"]
[WhiteClock "0:00:23"]
[BlackClock "0:00:01"]
[Board "5"]

1. d4 {[%clk 0:03:00]}  Nf6 {[%clk 0:02:58]} 2. c4 {[%clk 0:03:01]}  c5 {[%clk 0:02:59]} 3. d5 {[%clk 0:03:00]}  e6 {[%clk 0:02:59]} 4. Nc3 {[%clk 0:03:01]}  exd5 {[%clk 0:03:00]} 5. cxd5 {[%clk 0:03:01]}  d6 {[%clk 0:03:01]} 6. Nf3 {[%clk 0:03:01]}  g6 {[%clk 0:03:01]} 7. h3 {[%clk 0:03:01]}  Bg7 {[%clk 0:03:02]} 8. Bf4 {[%clk 0:03:02]}  O-O {[%clk 0:03:03]} 9. e3 {[%clk 0:03:01]}  Na6 {[%clk 0:03:02]} 10. Bxa6 {[%clk 0:02:59]}  bxa6 {[%clk 0:03:02]} 11. O-O {[%clk 0:02:56]}  Rb8 {[%clk 0:03:00]} 12. Rb1 {[%clk 0:02:55]}  Bf5 {[%clk 0:03:00]} 13. Rc1 {[%clk 0:02:30]}  Rxb2 {[%clk 0:02:59]} 14. Qa4 {[%clk 0:02:26]}  Qb6 {[%clk 0:02:51]} 15. Qc6 {[%clk 0:02:16]}  Qxc6 {[%clk 0:01:19]} 16. dxc6 {[%clk 0:02:17]}  Rc8 {[%clk 0:01:20]} 17. Bxd6 {[%clk 0:02:10]}  Rxc6 {[%clk 0:01:20]} 18. Rfd1 {[%clk 0:02:06]}  h6 {[%clk 0:01:13]} 19. Be5 {[%clk 0:01:25]}  Rb7 {[%clk 0:00:49]} 20. Nd5 {[%clk 0:01:01]}  Nxd5 {[%clk 0:00:46]} 21. Rxd5 {[%clk 0:01:02]}  Bf8 {[%clk 0:00:30]} 22. Nd4 {[%clk 0:00:54]}  cxd4 {[%clk 0:00:31]} 23. Rxc6 {[%clk 0:00:54]}  Be4 {[%clk 0:00:32]} 24. Rcd6 {[%clk 0:00:43]}  Bxd5 {[%clk 0:00:20]} 25. Rxd5 {[%clk 0:00:44]}  dxe3 {[%clk 0:00:14]} 26. fxe3 {[%clk 0:00:44]}  Rb5 {[%clk 0:00:07]} 27. e4 {[%clk 0:00:45]}  Rxd5 {[%clk 0:00:03]} 28. exd5 {[%clk 0:00:45]}  Bc5+ {[%clk 0:00:04]} 29. Kf1 {[%clk 0:00:45]}  Kf8 {[%clk 0:00:05]} 30. Ke2 {[%clk 0:00:43]}  Ke7 {[%clk 0:00:06]} 31. Kd3 {[%clk 0:00:44]}  f6 {[%clk 0:00:02]} 32. Bf4 {[%clk 0:00:33]}  g5 {[%clk 0:00:02]} 33. Bd2 {[%clk 0:00:33]}  Kd6 {[%clk 0:00:03]} 34. Ke4 {[%clk 0:00:32]}  f5+ {[%clk 0:00:01]} 35. Kxf5 {[%clk 0:00:32]}  Kxd5 {[%clk 0:00:02]} 36. Kg6 {[%clk 0:00:29]}  Bf8 {[%clk 0:00:03]} 37. Kf7 {[%clk 0:00:28]}  Bc5 {[%clk 0:00:03]} 38. Kg7 {[%clk 0:00:29]}  Ke4 {[%clk 0:00:02]} 39. Kxh6 {[%clk 0:00:28]}  Kd3 {[%clk 0:00:02]} 40. Bxg5 {[%clk 0:00:28]}  Kc2 {[%clk 0:00:03]} 41. Bd8 {[%clk 0:00:22]}  Kb2 {[%clk 0:00:03]} 42. a4 {[%clk 0:00:22]}  Kb3 {[%clk 0:00:03]} 43. a5 {[%clk 0:00:23]}  Ka4 {[%clk 0:00:02]} 44. g4 {[%clk 0:00:22]}  Bb4 {[%clk 0:00:01]} 45. g5 {[%clk 0:00:23]} 1-0


[Site "https://www.chess.com"]

[Event "Titled Tuesday Blitz July 18 Early 2023"]
[White "Kramnik, Vladimir"]
[Black "Bacrot, Etienne"]
[WhiteFideId "4101588"]
[BlackFideId "605506"]
[WhiteElo "2988"]
[BlackElo "2861"]
[Result "1-0"]
[Round "8"]
[TimeControl "180+2"]
[Date "2023.07.18"]
[WhiteClock "0:00:09"]
[BlackClock "0:00:00"]
[Board "6"]

1. e4 {[%clk 0:03:00]}  c5 {[%clk 0:02:59]} 2. Nf3 {[%clk 0:02:59]}  d6 {[%clk 0:03:00]} 3. d4 {[%clk 0:02:58]}  cxd4 {[%clk 0:03:00]} 4. Nxd4 {[%clk 0:02:55]}  Nf6 {[%clk 0:03:00]} 5. Nc3 {[%clk 0:02:55]}  Nc6 {[%clk 0:03:01]} 6. Be2 {[%clk 0:02:50]}  g6 {[%clk 0:02:59]} 7. Be3 {[%clk 0:02:48]}  Bg7 {[%clk 0:02:59]} 8. O-O {[%clk 0:02:48]}  O-O {[%clk 0:02:59]} 9. Qd2 {[%clk 0:02:48]}  Qa5 {[%clk 0:02:56]} 10. Nb3 {[%clk 0:02:39]}  Qc7 {[%clk 0:02:47]} 11. f3 {[%clk 0:02:32]}  Ne5 {[%clk 0:02:43]} 12. Rad1 {[%clk 0:02:23]}  Nc4 {[%clk 0:02:40]} 13. Bxc4 {[%clk 0:02:23]}  Qxc4 {[%clk 0:02:41]} 14. Bh6 {[%clk 0:02:21]}  b6 {[%clk 0:02:28]} 15. Bxg7 {[%clk 0:02:20]}  Kxg7 {[%clk 0:02:29]} 16. Qe3 {[%clk 0:02:15]}  Bb7 {[%clk 0:02:26]} 17. e5 {[%clk 0:02:06]}  dxe5 {[%clk 0:02:26]} 18. Qxe5 {[%clk 0:02:06]}  Rfe8 {[%clk 0:02:16]} 19. Rd7 {[%clk 0:02:03]}  Ba6 {[%clk 0:02:09]} 20. Re1 {[%clk 0:01:56]}  Qc6 {[%clk 0:01:05]} 21. Rc7 {[%clk 0:01:44]}  Qd6 {[%clk 0:01:05]} 22. Rxe7 {[%clk 0:01:22]}  Rxe7 {[%clk 0:00:58]} 23. Qxe7 {[%clk 0:01:23]}  Qf4 {[%clk 0:00:55]} 24. Qe5 {[%clk 0:01:16]}  Qxe5 {[%clk 0:00:55]} 25. Rxe5 {[%clk 0:01:15]}  Kf8 {[%clk 0:00:54]} 26. a4 {[%clk 0:01:06]}  Rd8 {[%clk 0:00:54]} 27. a5 {[%clk 0:01:03]}  Bc4 {[%clk 0:00:54]} 28. axb6 {[%clk 0:00:55]}  axb6 {[%clk 0:00:55]} 29. h4 {[%clk 0:00:43]}  h5 {[%clk 0:00:42]} 30. Kf2 {[%clk 0:00:43]}  Bxb3 {[%clk 0:00:33]} 31. cxb3 {[%clk 0:00:42]}  Rd4 {[%clk 0:00:34]} 32. g3 {[%clk 0:00:40]}  Rd2+ {[%clk 0:00:12]} 33. Re2 {[%clk 0:00:39]}  Rd4 {[%clk 0:00:12]} 34. Ke3 {[%clk 0:00:33]}  Rb4 {[%clk 0:00:12]} 35. Kd3 {[%clk 0:00:33]}  Nd7 {[%clk 0:00:11]} 36. Kc2 {[%clk 0:00:20]}  Nc5 {[%clk 0:00:11]} 37. Ne4 {[%clk 0:00:14]}  Nxb3 {[%clk 0:00:08]} 38. Kc3 {[%clk 0:00:14]}  Rb5 {[%clk 0:00:03]} 39. Kc4 {[%clk 0:00:14]}  f5 {[%clk 0:00:02]} 40. Ng5 {[%clk 0:00:11]}  Nc1 {[%clk 0:00:01]} 41. Kxb5 {[%clk 0:00:09]}  Nxe2 {[%clk 0:00:01]} 42. Kxb6 {[%clk 0:00:10]}  Nxg3 {[%clk 0:00:01]} 43. b4 {[%clk 0:00:10]}  Ke7 {[%clk 0:00:02]} 44. b5 {[%clk 0:00:10]}  Ne2 {[%clk 0:00:00]} 45. Kc7 {[%clk 0:00:09]} 1-0


[Site "https://www.chess.com"]

[Event "Titled Tuesday Blitz July 18 Early 2023"]
[White "Bachmann, Axel"]
[Black "Galperin, Platon"]
[WhiteFideId "3700488"]
[BlackFideId "14165414"]
[WhiteElo "2821"]
[BlackElo "2984"]
[Result "0-1"]
[Round "8"]
[TimeControl "180+2"]
[Date "2023.07.18"]
[WhiteClock "0:00:18"]
[BlackClock "0:01:33"]
[Board "7"]

1. c4 {[%clk 0:02:59]}  Nf6 {[%clk 0:02:58]} 2. Nc3 {[%clk 0:02:58]}  g6 {[%clk 0:02:59]} 3. Nf3 {[%clk 0:02:56]}  Bg7 {[%clk 0:02:59]} 4. d4 {[%clk 0:02:57]}  O-O {[%clk 0:02:59]} 5. Bg5 {[%clk 0:02:56]}  c5 {[%clk 0:02:54]} 6. d5 {[%clk 0:02:56]}  b5 {[%clk 0:02:54]} 7. cxb5 {[%clk 0:02:54]}  a6 {[%clk 0:02:55]} 8. e3 {[%clk 0:02:49]}  h6 {[%clk 0:02:44]} 9. Bh4 {[%clk 0:02:45]}  Qa5 {[%clk 0:02:43]} 10. Nd2 {[%clk 0:02:39]}  Qb4 {[%clk 0:02:43]} 11. Bg3 {[%clk 0:02:04]}  Qxb2 {[%clk 0:02:35]} 12. Rc1 {[%clk 0:01:58]}  axb5 {[%clk 0:02:31]} 13. Bxb5 {[%clk 0:01:56]}  Nxd5 {[%clk 0:02:20]} 14. Nxd5 {[%clk 0:01:56]}  Qxb5 {[%clk 0:02:21]} 15. Nc7 {[%clk 0:01:48]}  Qa5 {[%clk 0:02:15]} 16. Nxa8 {[%clk 0:01:46]}  d6 {[%clk 0:02:16]} 17. O-O {[%clk 0:01:34]}  Qxa8 {[%clk 0:02:15]} 18. e4 {[%clk 0:01:23]}  Nc6 {[%clk 0:02:16]} 19. Nc4 {[%clk 0:01:13]}  Be6 {[%clk 0:02:16]} 20. Nb6 {[%clk 0:01:03]}  Qxa2 {[%clk 0:02:15]} 21. Nd5 {[%clk 0:01:04]}  Bxd5 {[%clk 0:02:07]} 22. exd5 {[%clk 0:01:05]}  Nb4 {[%clk 0:02:07]} 23. Re1 {[%clk 0:00:59]}  Nxd5 {[%clk 0:02:00]} 24. Re2 {[%clk 0:00:43]}  Qa8 {[%clk 0:01:58]} 25. Qb3 {[%clk 0:00:38]}  Rb8 {[%clk 0:01:55]} 26. Qf3 {[%clk 0:00:34]}  Bd4 {[%clk 0:01:50]} 27. h4 {[%clk 0:00:32]}  h5 {[%clk 0:01:46]} 28. Rce1 {[%clk 0:00:26]}  e5 {[%clk 0:01:42]} 29. Rd2 {[%clk 0:00:19]}  Nc3 {[%clk 0:01:37]} 30. Qf6 {[%clk 0:00:19]}  Ne4 {[%clk 0:01:36]} 31. Rxe4 {[%clk 0:00:19]}  Qxe4 {[%clk 0:01:37]} 32. Qxd6 {[%clk 0:00:19]}  Rb1+ {[%clk 0:01:33]} 33. Kh2 {[%clk 0:00:18]}  Qe1 {[%clk 0:01:33]} 0-1


[Site "https://www.chess.com"]

[Event "Titled Tuesday Blitz July 18 Early 2023"]
[White "Durarbayli, Vasif"]
[Black "Theodorou, Nikolas"]
[WhiteFideId "13402935"]
[BlackFideId "4262875"]
[WhiteElo "2929"]
[BlackElo "3077"]
[Result "0-1"]
[Round "8"]
[TimeControl "180+2"]
[Date "2023.07.18"]
[WhiteClock "0:00:47"]
[BlackClock "0:01:45"]
[Board "10"]

1. e4 {[%clk 0:03:00]}  e5 {[%clk 0:03:00]} 2. Nf3 {[%clk 0:02:59]}  Nc6 {[%clk 0:03:01]} 3. Bb5 {[%clk 0:02:59]}  a6 {[%clk 0:03:01]} 4. Ba4 {[%clk 0:02:59]}  f5 {[%clk 0:03:01]} 5. d3 {[%clk 0:02:57]}  fxe4 {[%clk 0:03:01]} 6. dxe4 {[%clk 0:02:58]}  Nf6 {[%clk 0:03:02]} 7. Bg5 {[%clk 0:02:43]}  d6 {[%clk 0:02:59]} 8. c3 {[%clk 0:02:42]}  Be7 {[%clk 0:02:56]} 9. Nbd2 {[%clk 0:02:39]}  O-O {[%clk 0:02:54]} 10. Qe2 {[%clk 0:02:34]}  Nh5 {[%clk 0:02:49]} 11. Bxe7 {[%clk 0:02:10]}  Qxe7 {[%clk 0:02:50]} 12. g3 {[%clk 0:02:06]}  Kh8 {[%clk 0:02:45]} 13. Nh4 {[%clk 0:01:55]}  Nf4 {[%clk 0:02:44]} 14. gxf4 {[%clk 0:01:56]}  Qxh4 {[%clk 0:02:43]} 15. f5 {[%clk 0:01:57]}  Bxf5 {[%clk 0:02:36]} 16. O-O-O {[%clk 0:01:22]}  Be6 {[%clk 0:02:35]} 17. f3 {[%clk 0:01:18]}  Ne7 {[%clk 0:02:27]} 18. Bc2 {[%clk 0:01:17]}  b5 {[%clk 0:02:20]} 19. Rdg1 {[%clk 0:01:17]}  Ng6 {[%clk 0:02:18]} 20. Rg3 {[%clk 0:01:17]}  Nf4 {[%clk 0:02:18]} 21. Qe1 {[%clk 0:01:12]}  Rf7 {[%clk 0:02:14]} 22. Kb1 {[%clk 0:01:11]}  Raf8 {[%clk 0:02:09]} 23. Nf1 {[%clk 0:00:59]}  Nh5 {[%clk 0:02:03]} 24. Bd1 {[%clk 0:00:55]}  Nxg3 {[%clk 0:02:00]} 25. Nxg3 {[%clk 0:00:56]}  g6 {[%clk 0:01:58]} 26. Qe3 {[%clk 0:00:52]}  c5 {[%clk 0:01:54]} 27. Qd2 {[%clk 0:00:52]}  Rd8 {[%clk 0:01:53]} 28. Rf1 {[%clk 0:00:51]}  Qf4 {[%clk 0:01:48]} 29. Qg2 {[%clk 0:00:51]}  d5 {[%clk 0:01:47]} 30. exd5 {[%clk 0:00:51]}  Bxd5 {[%clk 0:01:47]} 31. Qe2 {[%clk 0:00:47]}  Bc4 {[%clk 0:01:45]} 0-1


[Site "https://www.chess.com"]

[Event "Titled Tuesday Blitz July 18 Early 2023"]
[White "Martinez Alcantara, Jose Eduardo"]
[Black "Zhigalko, Sergei"]
[WhiteFideId "3805662"]
[BlackFideId "13502956"]
[WhiteElo "3026"]
[BlackElo "2888"]
[Result "1-0"]
[Round "8"]
[TimeControl "180+2"]
[Date "2023.07.18"]
[WhiteClock "0:00:48"]
[BlackClock "0:00:00"]
[Board "11"]

1. e4 {[%clk 0:02:58]}  c5 {[%clk 0:03:00]} 2. Nf3 {[%clk 0:02:57]}  Nc6 {[%clk 0:03:00]} 3. Bb5 {[%clk 0:02:52]}  Nf6 {[%clk 0:03:00]} 4. Nc3 {[%clk 0:02:49]}  Qc7 {[%clk 0:03:00]} 5. Bxc6 {[%clk 0:02:49]}  dxc6 {[%clk 0:03:01]} 6. h3 {[%clk 0:02:50]}  e5 {[%clk 0:02:59]} 7. d3 {[%clk 0:02:49]}  Bd6 {[%clk 0:02:59]} 8. O-O {[%clk 0:02:47]}  O-O {[%clk 0:02:57]} 9. Nd2 {[%clk 0:02:45]}  b5 {[%clk 0:02:52]} 10. a4 {[%clk 0:02:40]}  Rb8 {[%clk 0:02:31]} 11. b3 {[%clk 0:02:37]}  Re8 {[%clk 0:02:27]} 12. Ne2 {[%clk 0:02:36]}  Nd7 {[%clk 0:02:21]} 13. Ng3 {[%clk 0:02:36]}  Nf8 {[%clk 0:02:20]} 14. Nf5 {[%clk 0:02:35]}  Ne6 {[%clk 0:02:19]} 15. Nf3 {[%clk 0:02:28]}  Bf8 {[%clk 0:02:09]} 16. axb5 {[%clk 0:02:22]}  cxb5 {[%clk 0:02:08]} 17. Ne3 {[%clk 0:02:23]}  Nf4 {[%clk 0:02:01]} 18. c4 {[%clk 0:02:04]}  Rb6 {[%clk 0:01:53]} 19. Nd5 {[%clk 0:02:02]}  Nxd5 {[%clk 0:01:53]} 20. cxd5 {[%clk 0:02:02]}  f5 {[%clk 0:01:19]} 21. Kh2 {[%clk 0:01:36]}  a6 {[%clk 0:01:15]} 22. Qc2 {[%clk 0:01:22]}  Rf6 {[%clk 0:01:04]} 23. Ng1 {[%clk 0:01:06]}  Bd6 {[%clk 0:00:53]} 24. f3 {[%clk 0:01:01]}  f4 {[%clk 0:00:38]} 25. Bd2 {[%clk 0:01:02]}  Qe7 {[%clk 0:00:34]} 26. Be1 {[%clk 0:00:57]}  g5 {[%clk 0:00:31]} 27. Rc1 {[%clk 0:00:58]}  Bd7 {[%clk 0:00:25]} 28. Bf2 {[%clk 0:00:58]}  Rc8 {[%clk 0:00:25]} 29. Qa2 {[%clk 0:00:59]}  Bb8 {[%clk 0:00:05]} 30. b4 {[%clk 0:00:58]}  cxb4 {[%clk 0:00:03]} 31. Rxc8+ {[%clk 0:00:54]}  Bxc8 {[%clk 0:00:04]} 32. Rc1 {[%clk 0:00:54]}  Bd7 {[%clk 0:00:04]} 33. Bc5 {[%clk 0:00:52]}  Qg7 {[%clk 0:00:00]} 34. Qa5 {[%clk 0:00:48]} 1-0


[Site "https://www.chess.com"]

[Event "Titled Tuesday Blitz July 18 Early 2023"]
[White "Fridman, Daniel"]
[Black "Kamsky, Gata"]
[WhiteFideId "11600454"]
[BlackFideId "2000024"]
[WhiteElo "2871"]
[BlackElo "3013"]
[Result "1-0"]
[Round "8"]
[TimeControl "180+2"]
[Date "2023.07.18"]
[WhiteClock "0:00:08"]
[BlackClock "0:00:00"]
[Board "13"]

1. d4 {[%clk 0:03:00]}  Nf6 {[%clk 0:02:56]} 2. Nf3 {[%clk 0:03:01]}  d5 {[%clk 0:02:52]} 3. c4 {[%clk 0:03:00]}  c6 {[%clk 0:02:51]} 4. g3 {[%clk 0:03:01]}  g6 {[%clk 0:02:49]} 5. Bg2 {[%clk 0:03:00]}  Bg7 {[%clk 0:02:49]} 6. cxd5 {[%clk 0:03:01]}  cxd5 {[%clk 0:02:49]} 7. Nc3 {[%clk 0:03:01]}  O-O {[%clk 0:02:49]} 8. Ne5 {[%clk 0:03:01]}  e6 {[%clk 0:02:48]} 9. O-O {[%clk 0:02:59]}  Nfd7 {[%clk 0:02:46]} 10. e4 {[%clk 0:02:59]}  Nxe5 {[%clk 0:02:40]} 11. dxe5 {[%clk 0:03:00]}  d4 {[%clk 0:02:39]} 12. Nb5 {[%clk 0:03:00]}  Nc6 {[%clk 0:02:39]} 13. f4 {[%clk 0:02:57]}  Qb6 {[%clk 0:02:32]} 14. Nd6 {[%clk 0:02:53]}  Bd7 {[%clk 0:01:47]} 15. Rf3 {[%clk 0:02:50]}  Rab8 {[%clk 0:01:33]} 16. Rb3 {[%clk 0:02:48]}  Qc7 {[%clk 0:01:33]} 17. Bd2 {[%clk 0:02:40]}  a6 {[%clk 0:01:32]} 18. Rc1 {[%clk 0:02:35]}  b5 {[%clk 0:01:31]} 19. Bb4 {[%clk 0:02:25]}  Rfd8 {[%clk 0:01:27]} 20. Bc5 {[%clk 0:02:12]}  Ra8 {[%clk 0:00:34]} 21. Bxd4 {[%clk 0:01:57]}  Qb8 {[%clk 0:00:34]} 22. Bc5 {[%clk 0:01:54]}  Na5 {[%clk 0:00:31]} 23. Rd3 {[%clk 0:01:53]}  Bc6 {[%clk 0:00:27]} 24. b4 {[%clk 0:01:39]}  Nc4 {[%clk 0:00:19]} 25. Nxc4 {[%clk 0:01:34]}  Rxd3 {[%clk 0:00:19]} 26. Qxd3 {[%clk 0:01:33]}  bxc4 {[%clk 0:00:19]} 27. Qxc4 {[%clk 0:01:33]}  Qb7 {[%clk 0:00:19]} 28. Bd6 {[%clk 0:01:30]}  Rc8 {[%clk 0:00:18]} 29. Bf1 {[%clk 0:01:17]}  Bd7 {[%clk 0:00:17]} 30. Bc5 {[%clk 0:01:18]}  Bb5 {[%clk 0:00:16]} 31. Qd4 {[%clk 0:01:17]}  Bc6 {[%clk 0:00:16]} 32. Bd3 {[%clk 0:00:51]}  h5 {[%clk 0:00:15]} 33. Kf2 {[%clk 0:00:45]}  Ra8 {[%clk 0:00:13]} 34. h4 {[%clk 0:00:43]}  Bb5 {[%clk 0:00:12]} 35. Rc2 {[%clk 0:00:37]}  a5 {[%clk 0:00:11]} 36. bxa5 {[%clk 0:00:31]}  Bxd3 {[%clk 0:00:11]} 37. Qxd3 {[%clk 0:00:31]}  Kh7 {[%clk 0:00:09]} 38. Bb6 {[%clk 0:00:30]}  Qe7 {[%clk 0:00:08]} 39. Qd6 {[%clk 0:00:27]}  Qe8 {[%clk 0:00:08]} 40. Qc6 {[%clk 0:00:26]}  Qf8 {[%clk 0:00:08]} 41. Qb5 {[%clk 0:00:19]}  Qa3 {[%clk 0:00:04]} 42. Qb3 {[%clk 0:00:17]}  Qe7 {[%clk 0:00:04]} 43. Rc7 {[%clk 0:00:16]}  Qd8 {[%clk 0:00:03]} 44. Qc2 {[%clk 0:00:15]}  Qe8 {[%clk 0:00:02]} 45. Qc6 {[%clk 0:00:15]}  Qf8 {[%clk 0:00:02]} 46. Rxf7 {[%clk 0:00:12]}  Qxf7 {[%clk 0:00:01]} 47. Qxa8 {[%clk 0:00:12]}  Qd7 {[%clk 0:00:02]} 48. Ke3 {[%clk 0:00:07]}  Qa4 {[%clk 0:00:01]} 49. Qd8 {[%clk 0:00:07]}  Qxa2 {[%clk 0:00:00]} 50. Qd3 {[%clk 0:00:08]} 1-0


[Site "https://www.chess.com"]

[Event "Titled Tuesday Blitz July 18 Early 2023"]
[White "Harsh Suresh"]
[Black "Svane, Rasmus"]
[WhiteFideId "45018464"]
[BlackFideId "4657101"]
[WhiteElo "2849"]
[BlackElo "2976"]
[Result "0-1"]
[Round "8"]
[TimeControl "180+2"]
[Date "2023.07.18"]
[WhiteClock "0:00:02"]
[BlackClock "0:00:32"]
[Board "15"]

1. d4 {[%clk 0:03:00]}  d5 {[%clk 0:02:59]} 2. Nf3 {[%clk 0:03:00]}  e6 {[%clk 0:02:59]} 3. Bf4 {[%clk 0:03:00]}  Bd6 {[%clk 0:02:59]} 4. e3 {[%clk 0:02:59]}  c5 {[%clk 0:02:58]} 5. c3 {[%clk 0:02:58]}  Ne7 {[%clk 0:02:58]} 6. Bd3 {[%clk 0:02:55]}  Nbc6 {[%clk 0:02:57]} 7. Nbd2 {[%clk 0:02:48]}  Bxf4 {[%clk 0:02:41]} 8. exf4 {[%clk 0:02:49]}  Qb6 {[%clk 0:02:41]} 9. Qb3 {[%clk 0:02:08]}  c4 {[%clk 0:02:37]} 10. Qxb6 {[%clk 0:02:07]}  axb6 {[%clk 0:02:38]} 11. Bc2 {[%clk 0:01:09]}  b5 {[%clk 0:02:39]} 12. a3 {[%clk 0:01:09]}  b4 {[%clk 0:02:39]} 13. Ke2 {[%clk 0:01:10]}  bxc3 {[%clk 0:02:30]} 14. bxc3 {[%clk 0:01:10]}  f6 {[%clk 0:02:21]} 15. Rhb1 {[%clk 0:01:08]}  Kd8 {[%clk 0:02:21]} 16. Nf1 {[%clk 0:01:00]}  Kc7 {[%clk 0:02:21]} 17. Ne3 {[%clk 0:01:00]}  Bd7 {[%clk 0:02:18]} 18. g3 {[%clk 0:00:49]}  Ra5 {[%clk 0:02:18]} 19. h4 {[%clk 0:00:43]}  h6 {[%clk 0:02:14]} 20. Ra2 {[%clk 0:00:33]}  Rha8 {[%clk 0:02:13]} 21. Rba1 {[%clk 0:00:33]}  b5 {[%clk 0:02:10]} 22. Bb1 {[%clk 0:00:32]}  Nc8 {[%clk 0:01:37]} 23. Ne1 {[%clk 0:00:13]}  Nd6 {[%clk 0:01:36]} 24. f3 {[%clk 0:00:13]}  g5 {[%clk 0:01:32]} 25. fxg5 {[%clk 0:00:08]}  hxg5 {[%clk 0:01:33]} 26. h5 {[%clk 0:00:08]}  f5 {[%clk 0:01:29]} 27. g4 {[%clk 0:00:06]}  f4 {[%clk 0:01:29]} 28. Nd1 {[%clk 0:00:04]}  e5 {[%clk 0:01:15]} 29. dxe5 {[%clk 0:00:05]}  Nf7 {[%clk 0:01:15]} 30. Nc2 {[%clk 0:00:06]}  Nfxe5 {[%clk 0:01:16]} 31. Nb4 {[%clk 0:00:05]}  Be6 {[%clk 0:01:08]} 32. h6 {[%clk 0:00:05]}  d4 {[%clk 0:01:02]} 33. cxd4 {[%clk 0:00:05]}  Nxd4+ {[%clk 0:01:02]} 34. Kf2 {[%clk 0:00:05]}  Rh8 {[%clk 0:01:00]} 35. h7 {[%clk 0:00:05]}  Ndxf3 {[%clk 0:01:01]} 36. Re2 {[%clk 0:00:04]}  Kd6 {[%clk 0:00:37]} 37. Nc3 {[%clk 0:00:04]}  Nd4 {[%clk 0:00:34]} 38. Rd2 {[%clk 0:00:03]}  Nxg4+ {[%clk 0:00:35]} 39. Kg2 {[%clk 0:00:03]}  Ke5 {[%clk 0:00:35]} 40. Bg6 {[%clk 0:00:01]}  Ne3+ {[%clk 0:00:34]} 41. Kf2 {[%clk 0:00:02]}  g4 {[%clk 0:00:32]} 42. Rh1 {[%clk 0:00:01]}  g3+ {[%clk 0:00:32]} 43. Kg1 {[%clk 0:00:02]}  Nf3# {[%clk 0:00:32]} 0-1


[Site "https://www.chess.com"]